fUST/lending_fUST_20250623
["ID","MTS","AMOUNT","RATE_DAILY","PERIOD"]
[367054644,1750639839225,-460.0,0.00021917,2]
[367054645,1750639839235,-460.0,0.00021917,2]
[367054646,1750639839244,-460.0,0.00021917,2]
[367054647,1750639839254,-460.0,0.00021917,2]
[367054648,1750639839263,-2661.47,0.00021917,2]
[367054649,1750639839272,-460.0,0.00021917,2]
[367054650,1750639839282,-460.0,0.00021917,2]
[367054651,1750639839291,-381.9588752,0.00021917,2]
[367054652,1750639839300,-460.0,0.00021917,2]
[367054653,1750639839310,-460.0,0.00021917,2]
[367054654,1750639839321,-460.0,0.00021917,2]
[367054655,1750639839330,-460.0,0.00021917,2]
[367054656,1750639839340,-20679.38,0.00021917,2]
[367054657,1750639839349,-460.0,0.00021917,2]
[367054658,1750639839358,-555.81,0.00021917,2]
[367054659,1750639839367,-489.02,0.00021917,2]
[367054660,1750639839376,-460.0,0.00021917,2]
[367054661,1750639839385,-460.0,0.00021917,2]
[367054662,1750639839395,-460.0,0.00021917,2]
[367054663,1750639839404,-353.50552984,0.00021917,2]
[367054664,1750639839413,-460.0,0.00021917,2]
[367054665,1750639839423,-1034.81,0.00021917,2]
[367054666,1750639839432,-346.6904715,0.00021917,2]
[367054667,1750639839442,-4985.08,0.00021917,2]
[367054668,1750639839451,-460.0,0.00021917,2]
[367054669,1750639839461,-460.0,0.00021917,2]
[367054670,1750639839471,-460.0,0.00021917,2]
[367054671,1750639839480,-460.0,0.00021917,2]
[367054672,1750639839490,-3125.15,0.00021917,2]
[367054673,1750639839500,-460.0,0.00021917,2]
[367054674,1750639839509,-460.0,0.00021917,2]
[367054675,1750639839519,-460.0,0.00021917,2]
[367054676,1750639839528,-460.0,0.00021917,2]
[367054677,1750639839537,-2766.56,0.00021917,2]
[367054678,1750639839546,-311.71123351,0.00021917,2]
[367054679,1750639839557,-1439.84,0.00021917,2]
[367054680,1750639839566,-460.0,0.00021917,2]
[367054681,1750639839576,-500.0,0.00021917,2]
[367054682,1750639839585,-500.0,0.00021917,2]
[367054683,1750639839594,-500.0,0.00021917,2]
[367054684,1750639839604,-460.0,0.00021917,2]
[367054685,1750639839613,-500.0,0.00021917,2]
[367054686,1750639839622,-500.0,0.00021917,2]
[367054687,1750639839631,-500.0,0.00021917,2]
[367054688,1750639839641,-500.0,0.00021917,2]
[367054689,1750639839650,-500.0,0.00021917,2]
[367054690,1750639839659,-500.0,0.00021917,2]
[367054691,1750639839669,-500.0,0.00021917,2]
[367054692,1750639839678,-460.0,0.00021917,2]
[367054693,1750639839687,-500.0,0.00021917,2]
[367054694,1750639839697,-488.23,0.00021917,2]
[367054695,1750639839707,-460.0,0.00021917,2]
[367054696,1750639839716,-460.0,0.00021917,2]
[367054697,1750639839726,-460.0,0.00021917,2]
[367054698,1750639839735,-460.0,0.00021917,2]
[367054699,1750639839745,-871.07,0.00021917,2]
[367054700,1750639839754,-2068.54,0.00021917,2]
[367054701,1750639839764,-1006.17,0.00021917,2]
[367054702,1750639839774,-460.0,0.00021917,2]
[367054703,1750639839783,-460.0,0.00021917,2]
[367054704,1750639839792,-489.87,0.00021917,2]
[367054705,1750639839802,-460.0,0.00021917,2]
[367054706,1750639839812,-460.0,0.00021917,2]
[367054707,1750639839822,-460.0,0.00021917,2]
[367054708,1750639839848,-586.93401981,0.00021917,2]
[367054709,1750639839859,-2356.32,0.00021917,2]
[367054710,1750639839868,-460.0,0.00021917,2]
[367054711,1750639839878,-790.32,0.00021917,2]
[367054712,1750639839887,-460.0,0.00021917,2]
[367054713,1750639839897,-5865.65,0.00021917,2]
[367054714,1750639839906,-568.34,0.00021917,2]
[367054715,1750639839915,-889.68,0.00021917,2]
[367054716,1750639839925,-460.0,0.00021917,2]
[367054717,1750639839934,-460.0,0.00021917,2]
[367054718,1750639839944,-460.0,0.00021917,2]
[367054719,1750639839954,-404.62798394,0.00021917,2]
[367054720,1750639839964,-460.0,0.00021917,2]
[367054721,1750639839973,-460.0,0.00021917,2]
[367054722,1750639839983,-460.0,0.00021917,2]
[367054723,1750639839993,-584.14,0.00021917,2]
[367054724,1750639840003,-443.01279979,0.00021917,2]
[367054725,1750639840013,-956.65,0.00021917,2]
[367054727,1750639840023,-3438.1,0.00021917,2]
[367054728,1750639840032,-460.0,0.00021917,2]
[367054729,1750639840042,-3587.65,0.00021917,2]
[367054730,1750639840052,-460.0,0.00021917,2]
[367054731,1750639840061,-460.0,0.00021917,2]
[367054733,1750639840073,-460.0,0.00021917,2]
[367054734,1750639840082,-460.0,0.00021917,2]
[367054735,1750639840093,-460.0,0.00021917,2]
[367054736,1750639840102,-460.0,0.00021917,2]
[367054737,1750639840113,-492.8,0.00021917,2]
[367054738,1750639840123,-460.0,0.00021917,2]
[367054739,1750639840134,-460.0,0.00021917,2]
[367054740,1750639840145,-701.9,0.00021917,2]
[367054741,1750639840155,-1741.26,0.00021917,2]
[367054742,1750639840166,-698.82,0.00021917,2]
[367054743,1750639840180,-6645.19,0.00021917,2]
[367054744,1750639840192,-460.0,0.00021917,2]
[367054745,1750639840202,-672.16,0.00021917,2]
[367054746,1750639840213,-1765.4,0.00021917,2]
[367054747,1750639840223,-753.67,0.00021917,2]
[367054749,1750639840234,-1311.87,0.00021917,2]
[367054751,1750639840243,-574.19,0.00021917,2]
[367054753,1750639840253,-666.75,0.00021917,2]
[367054755,1750639840263,-460.0,0.00021917,2]
[367054756,1750639840274,-11550.61,0.00021917,2]
[367054757,1750639840283,-608.17,0.00021917,2]
[367054758,1750639840293,-1446.05,0.00021917,2]
[367054759,1750639840304,-460.0,0.00021917,2]
[367054760,1750639840315,-2695.85,0.00021917,2]
[367054761,1750639840325,-3020.99,0.00021917,2]
[367054762,1750639840335,-460.0,0.00021917,2]
[367054763,1750639840345,-565.08,0.00021917,2]
[367054764,1750639840355,-460.0,0.00021917,2]
[367054765,1750639840364,-460.0,0.00021917,2]
[367054766,1750639840375,-460.0,0.00021917,2]
[367054767,1750639840384,-460.0,0.00021917,2]
[367054768,1750639840394,-1507.87,0.00021917,2]
[367054769,1750639840404,-461.24180096,0.00021917,2]
[367054770,1750639840414,-551.39,0.00021917,2]
[367054771,1750639840424,-460.0,0.00021917,2]
[367054772,1750639840434,-1730.36,0.00021917,2]
[367054773,1750639840444,-460.0,0.00021917,2]
[367054774,1750639840454,-460.0,0.00021917,2]
[367054775,1750639840465,-460.0,0.00021917,2]
[367054776,1750639840476,-557.09,0.00021917,2]
[367054777,1750639840486,-460.0,0.00021917,2]
[367054778,1750639840496,-587.72,0.00021917,2]
[367054779,1750639840507,-500.0,0.00021917,2]
[367054780,1750639840517,-460.0,0.00021917,2]
[367054781,1750639840528,-460.0,0.00021917,2]
[367054782,1750639840537,-432.55960243,0.00021917,2]
[367054783,1750639840547,-249.81329423,0.00021917,2]
[367054784,1750639840557,-460.0,0.00021917,2]
[367054785,1750639840568,-460.0,0.00021917,2]
[367054786,1750639840578,-460.0,0.00021917,2]
[367054787,1750639840589,-7311.34,0.00021917,2]
[367054788,1750639840599,-500.0,0.00021917,2]
[367054789,1750639840608,-1651.15,0.00021917,2]
[367054790,1750639840618,-609.22,0.00021917,2]
[367054791,1750639840628,-1141.66,0.00021917,2]
[367054792,1750639840639,-460.0,0.00021917,2]
[367054793,1750639840649,-460.0,0.00021917,2]
[367054794,1750639840659,-460.0,0.00021917,2]
[367054795,1750639840669,-460.0,0.00021917,2]
[367054796,1750639840679,-3179.76,0.00021917,2]
[367054797,1750639840689,-1659.79,0.00021917,2]
[367054798,1750639840699,-460.0,0.00021917,2]
[367054799,1750639840709,-460.0,0.00021917,2]
[367054800,1750639840719,-9731.61,0.00021917,2]
[367054801,1750639840729,-460.0,0.00021917,2]
[367054802,1750639840740,-460.0,0.00021917,2]
[367054803,1750639840752,-150.0,0.00021918,2]
[367054804,1750639840770,-500.0,0.00021973,2]
[367054805,1750639840781,-500.0,0.00021973,2]
[367054806,1750639840791,-500.0,0.00021973,2]
[367054807,1750639840802,-500.0,0.00021973,2]
[367054808,1750639840813,-500.0,0.00021973,2]
[367054809,1750639840824,-500.0,0.00021973,2]
[367054810,1750639840834,-500.0,0.00021973,2]
[367054811,1750639840853,-500.0,0.00021973,2]
[367054812,1750639840863,-512.26813608,0.00021973,2]
[367054813,1750639840873,-500.0,0.00021973,2]
[367054814,1750639840883,-500.0,0.00021973,2]
[367054815,1750639840893,-500.0,0.00021973,2]
[367054816,1750639840903,-500.0,0.00021973,2]
[367054817,1750639840913,-500.0,0.00021973,2]
[367054818,1750639840923,-500.0,0.00021973,2]
[367054819,1750639840932,-618.66004569,0.00021973,2]
[367054820,1750639840942,-209.96351216,0.00021973,2]
[367054821,1750639840952,-500.0,0.00021973,2]
[367054822,1750639840962,-500.0,0.00021973,2]
[367054823,1750639840971,-500.0,0.00021973,2]
[367054824,1750639840981,-500.0,0.00021973,2]
[367054825,1750639840991,-500.0,0.00021973,2]
[367054826,1750639841001,-500.0,0.00021973,2]
[367054827,1750639841011,-500.0,0.00021973,2]
[367054828,1750639841021,-500.0,0.00021973,2]
[367054829,1750639841031,-500.0,0.00021973,2]
[367054830,1750639841041,-500.0,0.00021973,2]
[367054831,1750639841052,-506.03016744,0.00021973,2]
[367054832,1750639841063,-504.0200472,0.00021973,2]
[367054833,1750639841072,-500.0,0.00021973,2]
[367054834,1750639841082,-344.38170563,0.00021973,2]
[367054835,1750639841092,-500.0,0.00021973,2]
[367054836,1750639841102,-500.0,0.00021973,2]
[367054837,1750639841112,-500.0,0.00021973,2]
[367054838,1750639841122,-500.0,0.00021973,2]
[367054840,1750639841132,-500.0,0.00021973,2]
[367054842,1750639841144,-500.0,0.00021973,2]
[367054843,1750639841156,-500.0,0.00021973,2]
[367054844,1750639841165,-500.0,0.00021973,2]
[367054846,1750639841175,-500.0,0.00021973,2]
[367054847,1750639841186,-512.25010728,0.00021973,2]
[367054849,1750639841196,-442.81653025,0.0002199,2]
[367054851,1750639841205,-3096.05,0.00022,7]
[367054853,1750639841215,-104290.98,0.00022,2]
[367054855,1750639841225,-9825.4,0.00022,7]
[367054857,1750639841236,-524.02598587,0.00022,7]
[367054859,1750639841245,-255.0,0.0002201,2]
[367054861,1750639841255,-255.0,0.00022015,2]
[367054863,1750639841265,-255.0,0.0002202,2]
[367054865,1750639841275,-5924.64207651,0.00022023,2]
[367054867,1750639841285,-255.0,0.00022025,2]
[367054869,1750639841295,-238.00768443,0.0002203,2]
[367054871,1750639841304,-2692.38240704,0.00022072,6]
[367054873,1750639841314,-287.67925767,0.00022088,2]
[367054875,1750639841325,-695.3354358,0.00022132,2]
[367054877,1750639841335,-500.0,0.00022173,2]
[367054879,1750639841345,-500.0,0.00022173,2]
[367054881,1750639841356,-500.0,0.00022173,2]
[367054883,1750639841366,-500.0,0.00022173,2]
[367054885,1750639841376,-500.99072211,0.00022173,2]
[367054887,1750639841385,-500.0,0.00022173,2]
[367054889,1750639841395,-500.0,0.00022173,2]
[367054891,1750639841405,-500.0,0.00022173,2]
[367054893,1750639841415,-500.0,0.00022173,2]
[367054895,1750639841425,-500.0,0.00022173,2]
[367054897,1750639841436,-500.0,0.00022173,2]
[367054899,1750639841446,-500.0,0.00022173,2]
[367054901,1750639841456,-609.98062885,0.00022173,2]
[367054903,1750639841466,-400.2658602,0.00022173,2]
[367054905,1750639841476,-310.79300805,0.00022173,2]
[367054907,1750639841486,-600.0,0.00022173,2]
[367054909,1750639841496,-500.0,0.00022173,2]
[367054911,1750639841507,-500.0,0.00022173,2]
[367054913,1750639841517,-500.0,0.00022173,2]
[367054915,1750639841527,-500.0,0.00022173,2]
[367054917,1750639841538,-500.0,0.00022173,2]
[367054919,1750639841549,-500.0,0.00022173,2]
[367054921,1750639841559,-500.0,0.00022173,2]
[367054923,1750639841569,-500.0,0.00022173,2]
[367054925,1750639841579,-500.0,0.00022173,2]
[367054927,1750639841588,-500.0,0.00022173,2]
[367054929,1750639841598,-500.0,0.00022173,2]
[367054930,1750639841608,-500.0,0.00022173,2]
[367054931,1750639841618,-446.44519894,0.00022173,2]
[367054945,1750639844849,-12323.17106616,0.00021877,2]
[367054946,1750639844866,-28732.93596384,0.00021877,2]
[367054947,1750639844877,-460.0,0.00021917,2]
[367054948,1750639844890,-460.0,0.00021917,2]
[367054949,1750639844900,-460.0,0.00021917,2]
[367054950,1750639844911,-460.0,0.00021917,2]
[367054951,1750639844921,-846.39664074,0.00022,7]
[367054952,1750639844930,-53.55480106,0.00022173,2]
[367054953,1750639844941,-500.0,0.00022173,2]
[367054954,1750639844951,-500.0,0.00022173,2]
[367054955,1750639844961,-500.0,0.00022173,2]
[367054956,1750639844970,-500.0,0.00022173,2]
[367054957,1750639844979,-500.0,0.00022173,2]
[367054958,1750639844990,-500.0,0.00022173,2]
[367054959,1750639845002,-500.0,0.00022173,2]
[367054960,1750639845012,-500.0,0.00022173,2]
[367054961,1750639845022,-500.0,0.00022173,2]
[367054962,1750639845031,-500.0,0.00022173,2]
[367054963,1750639845041,-1548.96,0.0002218,2]
[367054964,1750639845053,-500.0,0.00022189,2]
[367054965,1750639845063,-1548.96,0.00022189,2]
[367054966,1750639845074,-1548.96,0.00022189,2]
[367054967,1750639845083,-500.0,0.0002219,2]
[367054968,1750639845094,-500.0,0.0002219,2]
[367054969,1750639845104,-500.0,0.0002219,2]
[367054970,1750639845114,-500.0,0.0002219,2]
[367054971,1750639845124,-1000.0,0.0002219,2]
[367054972,1750639845133,-1000.0,0.0002219,2]
[367054973,1750639845143,-1548.96,0.0002219,2]
[367054974,1750639845154,-1548.96,0.0002219,2]
[367054975,1750639845164,-1548.96,0.0002219,2]
[367054976,1750639845175,-1548.96,0.0002219,2]
[367054977,1750639845185,-1548.96,0.0002219,2]
[367054978,1750639845199,-1548.96,0.0002219,2]
[367054979,1750639845209,-460.0,0.00022191,2]
[367054980,1750639845224,-460.0,0.00022191,2]
[367054981,1750639845234,-1354.6,0.00022191,2]
[367054982,1750639845244,-460.0,0.00022191,2]
[367054983,1750639845255,-460.0,0.00022191,2]
[367054984,1750639845266,-460.0,0.00022191,2]
[367054985,1750639845276,-460.0,0.00022191,2]
[367054986,1750639845286,-460.0,0.00022191,2]
[367054987,1750639845298,-460.0,0.00022191,2]
[367054988,1750639845308,-460.0,0.00022191,2]
[367054989,1750639845319,-460.0,0.00022191,2]
[367054990,1750639845330,-460.0,0.00022191,2]
[367054991,1750639845340,-460.0,0.00022191,2]
[367054992,1750639845350,-430.0,0.00022191,2]
[367054993,1750639845359,-277.05826503,0.00022191,2]
[367054994,1750639845369,-460.0,0.00022191,2]
[367054995,1750639845378,-460.0,0.00022191,2]
[367054996,1750639845387,-460.0,0.00022191,2]
[367054997,1750639845397,-390.0,0.00022191,2]
[367054998,1750639845407,-460.0,0.00022191,2]
[367054999,1750639845416,-224.98999641,0.00022191,2]
[367055000,1750639845426,-460.0,0.00022191,2]
[367055001,1750639845437,-460.0,0.00022191,2]
[367055002,1750639845447,-460.0,0.00022191,2]
[367055003,1750639845457,-460.0,0.00022191,2]
[367055004,1750639845467,-460.0,0.00022191,2]
[367055005,1750639845478,-460.0,0.00022191,2]
[367055006,1750639845489,-162.20263485,0.00022191,2]
[367055007,1750639845499,-460.0,0.00022191,2]
[367055008,1750639845678,-460.0,0.00022191,2]
[367055009,1750639845700,-460.0,0.00022191,2]
[367055010,1750639845711,-460.0,0.00022191,2]
[367055011,1750639845721,-460.0,0.00022191,2]
[367055012,1750639845731,-460.0,0.00022191,2]
[367055013,1750639845741,-460.0,0.00022191,2]
[367055014,1750639845750,-460.0,0.00022191,2]
[367055015,1750639845760,-240.7576178,0.00022191,2]
[367055016,1750639845770,-460.0,0.00022191,2]
[367055017,1750639845780,-460.0,0.00022191,2]
[367055018,1750639845790,-1019.2,0.00022191,2]
[367055019,1750639845802,-460.0,0.00022191,2]
[367055020,1750639845811,-460.0,0.00022191,2]
[367055021,1750639845821,-460.0,0.00022191,2]
[367055022,1750639845831,-460.0,0.00022191,2]
[367055023,1750639845840,-460.0,0.00022191,2]
[367055024,1750639845850,-460.0,0.00022191,2]
[367055025,1750639845859,-435.24141904,0.00022191,2]
[367055026,1750639845869,-460.0,0.00022191,2]
[367055027,1750639845878,-460.0,0.00022191,2]
[367055028,1750639845888,-460.0,0.00022191,2]
[367055029,1750639845897,-460.0,0.00022191,2]
[367055031,1750639845907,-460.0,0.00022191,2]
[367055032,1750639845917,-460.0,0.00022191,2]
[367055033,1750639845926,-460.0,0.00022191,2]
[367055034,1750639845936,-460.0,0.00022191,2]
[367055035,1750639845946,-460.0,0.00022191,2]
[367055036,1750639845955,-460.0,0.00022191,2]
[367055037,1750639845965,-460.0,0.00022191,2]
[367055038,1750639845974,-460.0,0.00022191,2]
[367055039,1750639845984,-460.0,0.00022191,2]
[367055040,1750639845994,-460.0,0.00022191,2]
[367055041,1750639846004,-494.89,0.00022191,2]
[367055042,1750639846013,-460.0,0.00022191,2]
[367055044,1750639846023,-460.0,0.00022191,2]
[367055045,1750639846033,-460.0,0.00022191,2]
[367055046,1750639846043,-348.91041067,0.00022191,2]
[367055047,1750639846053,-460.0,0.00022191,2]
[367055048,1750639846062,-460.0,0.00022191,2]
[367055049,1750639846073,-460.0,0.00022191,2]
[367055050,1750639846083,-460.0,0.00022191,2]
[367055051,1750639846093,-460.0,0.00022191,2]
[367055052,1750639846102,-460.0,0.00022191,2]
[367055053,1750639846112,-460.0,0.00022191,2]
[367055054,1750639846121,-461.97,0.00022191,2]
[367055055,1750639846131,-460.0,0.00022191,2]
[367055056,1750639846141,-460.0,0.00022191,2]
[367055057,1750639846157,-652.66,0.00022191,2]
[367055058,1750639846167,-460.0,0.00022191,2]
[367055059,1750639846176,-460.0,0.00022191,2]
[367055060,1750639846186,-460.0,0.00022191,2]
[367055061,1750639846201,-350.0,0.00022191,2]
[367055062,1750639846212,-624.55,0.00022191,2]
[367055063,1750639846222,-460.0,0.00022191,2]
[367055064,1750639846232,-460.0,0.00022191,2]
[367055065,1750639846242,-460.0,0.00022191,2]
[367055066,1750639846252,-460.0,0.00022191,2]
[367055067,1750639846261,-460.0,0.00022191,2]
[367055068,1750639846270,-460.0,0.00022191,2]
[367055070,1750639846279,-969.13,0.00022191,2]
[367055072,1750639846289,-489.31,0.00022191,2]
[367055074,1750639846298,-460.0,0.00022191,2]
[367055076,1750639846307,-460.0,0.00022191,2]
[367055077,1750639846317,-460.0,0.00022191,2]
[367055078,1750639846328,-460.0,0.00022191,2]
[367055079,1750639846337,-1215.8,0.00022191,2]
[367055081,1750639846347,-481.76,0.00022191,2]
[367055082,1750639846356,-521.74,0.00022191,2]
[367055084,1750639846365,-733.87,0.00022191,2]
[367055085,1750639846375,-460.0,0.00022191,2]
[367055086,1750639846384,-695.13,0.00022191,2]
[367055088,1750639846394,-460.0,0.00022191,2]
[367055090,1750639846403,-439.10460662,0.00022191,2]
[367055092,1750639846413,-460.0,0.00022191,2]
[367055094,1750639846423,-460.0,0.00022191,2]
[367055095,1750639846433,-460.0,0.00022191,2]
[367055096,1750639846442,-460.0,0.00022191,2]
[367055097,1750639846451,-493.8,0.00022191,2]
[367055098,1750639846461,-460.0,0.00022191,2]
[367055099,1750639846471,-460.0,0.00022191,2]
[367055100,1750639846482,-460.0,0.00022191,2]
[367055101,1750639846491,-460.0,0.00022191,2]
[367055102,1750639846500,-461.061973,0.00022191,2]
[367055103,1750639846509,-201.19503109,0.00022191,2]
[367055104,1750639846518,-460.0,0.00022191,2]
[367055105,1750639846528,-460.0,0.00022191,2]
[367055106,1750639846537,-717.48,0.00022191,2]
[367055107,1750639846547,-460.0,0.00022191,2]
[367055108,1750639846556,-460.0,0.00022191,2]
[367055109,1750639846567,-575.94,0.00022191,2]
[367055110,1750639846577,-460.0,0.00022191,2]
[367055111,1750639846587,-460.0,0.00022191,2]
[367055112,1750639846596,-460.0,0.00022191,2]
[367055113,1750639846605,-460.0,0.00022191,2]
[367055114,1750639846614,-575.61,0.00022191,2]
[367055115,1750639846624,-460.0,0.00022191,2]
[367055116,1750639846633,-460.0,0.00022191,2]
[367055117,1750639846643,-460.0,0.00022191,2]
[367055118,1750639846653,-514.44135775,0.00022191,2]
[367055119,1750639846663,-460.0,0.00022191,2]
[367055121,1750639846673,-460.0,0.00022191,2]
[367055123,1750639846683,-460.0,0.00022191,2]
[367055124,1750639846692,-460.0,0.00022191,2]
[367055125,1750639846703,-460.0,0.00022191,2]
[367055126,1750639846712,-460.0,0.00022191,2]
[367055127,1750639846722,-460.0,0.00022191,2]
[367055128,1750639846731,-580.28,0.00022191,2]
[367055129,1750639846741,-971.13,0.00022191,2]
[367055130,1750639846751,-460.0,0.00022191,2]
[367055131,1750639846759,-460.0,0.00022191,2]
[367055132,1750639846769,-460.0,0.00022191,2]
[367055133,1750639846778,-460.0,0.00022191,2]
[367055134,1750639846787,-460.0,0.00022191,2]
[367055135,1750639846797,-460.0,0.00022191,2]
[367055136,1750639846807,-542.21,0.00022191,2]
[367055137,1750639846816,-460.0,0.00022191,2]
[367055138,1750639846827,-460.0,0.00022191,2]
[367055139,1750639846837,-462.93,0.00022191,2]
[367055140,1750639846846,-320.51449009,0.00022191,2]
[367055141,1750639846856,-460.0,0.00022191,2]
[367055142,1750639846866,-460.0,0.00022191,2]
[367055143,1750639846876,-460.0,0.00022191,2]
[367055144,1750639846885,-460.0,0.00022191,2]
[367055145,1750639846894,-460.0,0.00022191,2]
[367055146,1750639846904,-382.58134927,0.00022191,2]
[367055147,1750639846915,-460.0,0.00022191,2]
[367055148,1750639846924,-460.0,0.00022191,2]
[367055149,1750639846933,-500.0,0.00022191,2]
[367055150,1750639846943,-460.0,0.00022191,2]
[367055151,1750639846952,-524.63574279,0.00022191,2]
[367055152,1750639846962,-460.0,0.00022191,2]
[367055153,1750639846971,-647.88,0.00022191,2]
[367055154,1750639846981,-652.67,0.00022191,2]
[367055155,1750639846991,-367.02302055,0.00022191,2]
[367055156,1750639847000,-975.0,0.00022191,2]
[367055157,1750639847011,-460.0,0.00022191,2]
[367055158,1750639847021,-460.0,0.00022191,2]
[367055159,1750639847030,-963.32,0.00022191,2]
[367055160,1750639847039,-460.0,0.00022191,2]
[367055161,1750639847049,-460.0,0.00022191,2]
[367055162,1750639847058,-460.0,0.00022191,2]
[367055163,1750639847068,-460.0,0.00022191,2]
[367055164,1750639847077,-1615.31,0.00022191,2]
[367055165,1750639847087,-460.0,0.00022191,2]
[367055166,1750639847097,-460.0,0.00022191,2]
[367055167,1750639847106,-424.75599261,0.00022191,2]
[367055168,1750639847115,-460.0,0.00022191,2]
[367055169,1750639847126,-460.0,0.00022191,2]
[367055170,1750639847135,-460.0,0.00022191,2]
[367055171,1750639847145,-460.0,0.00022191,2]
[367055172,1750639847155,-1308.56,0.00022191,2]
[367055173,1750639847168,-460.0,0.00022191,2]
[367055174,1750639847178,-460.0,0.00022191,2]
[367055175,1750639847187,-1593.64,0.00022191,2]
[367055176,1750639847197,-460.0,0.00022191,2]
[367055177,1750639847207,-1149.69,0.00022191,2]
[367055178,1750639847216,-460.0,0.00022191,2]
[367055179,1750639847227,-460.0,0.00022191,2]
[367055180,1750639847236,-460.0,0.00022191,2]
[367055181,1750639847246,-460.0,0.00022191,2]
[367055182,1750639847255,-460.0,0.00022191,2]
[367055183,1750639847265,-1671.46,0.00022191,2]
[367055184,1750639847274,-359.74139586,0.00022191,2]
[367055185,1750639847284,-460.0,0.00022191,2]
[367055186,1750639847295,-460.0,0.00022191,2]
[367055187,1750639847305,-1162.67,0.00022191,2]
[367055188,1750639847315,-397.75857945,0.00022191,2]
[367055189,1750639847324,-733.82,0.00022191,2]
[367055190,1750639847333,-460.0,0.00022191,2]
[367055191,1750639847343,-460.0,0.00022191,2]
[367055192,1750639847352,-589.76,0.00022191,2]
[367055193,1750639847361,-153.67383046,0.00022191,2]
[367055194,1750639847371,-703.04,0.00022191,2]
[367055195,1750639847381,-460.0,0.00022191,2]
[367055196,1750639847390,-460.0,0.00022191,2]
[367055197,1750639847400,-1388.78,0.00022191,2]
[367055198,1750639847410,-1207.94,0.00022191,2]
[367055199,1750639847420,-460.0,0.00022191,2]
[367055200,1750639847432,-795.21,0.00022191,2]
[367055201,1750639847442,-460.0,0.00022191,2]
[367055202,1750639847452,-460.0,0.00022191,2]
[367055203,1750639847462,-460.0,0.00022191,2]
[367055204,1750639847472,-460.0,0.00022191,2]
[367055205,1750639847481,-460.0,0.00022191,2]
[367055206,1750639847491,-825.13,0.00022191,2]
[367055207,1750639847501,-460.0,0.00022191,2]
[367055208,1750639847511,-460.0,0.00022191,2]
[367055209,1750639847520,-460.0,0.00022191,2]
[367055210,1750639847530,-2488.34,0.00022191,2]
[367055211,1750639847543,-460.0,0.00022191,2]
[367055212,1750639847553,-460.0,0.00022191,2]
[367055213,1750639847563,-625.86,0.00022191,2]
[367055214,1750639847573,-460.0,0.00022191,2]
[367055215,1750639847582,-460.0,0.00022191,2]
[367055216,1750639847592,-460.0,0.00022191,2]
[367055217,1750639847603,-641.12,0.00022191,2]
[367055218,1750639847613,-429.60716969,0.00022191,2]
[367055219,1750639847622,-460.0,0.00022191,2]
[367055220,1750639847632,-958.86,0.00022191,2]